bitfinex/quotes_SOLUSD_20250924
["timestamp","ask_amount","ask_price","bid_price","bid_amount"]
[1758751218418,0.9,211.75,211.7,4.72366556]
[1758751218618,0.9,211.75,211.7,0.68]
[1758751220138,0.9,211.75,211.71,16.53204855]
[1758751220717,0.2,211.75,211.71,17.21204855]
[1758751221334,0.2,211.75,211.72,0.72]
[1758751222137,0.2,211.75,211.73,4.72299626]
[1758751223027,0.2,211.75,211.74,0.72]
[1758751223234,0.2,211.75,211.73,4.72299626]
[1758751224247,0.2,211.75,211.74,0.72]
[1758751224743,0.2,211.75,211.72,17.2512677]
[1758751224947,0.2,211.75,211.73,0.72]
[1758751226142,0.2,211.75,211.74,5.44277321]
[1758751226443,0.2,211.75,211.74,4.72277321]
[1758751227340,0.2,211.75,211.74,5.44277321]
[1758751228036,0.2,211.75,211.74,7.64694987]
[1758751228232,0.2,211.75,211.74,5.44277321]
[1758751228431,0.2,211.75,211.74,7.64694987]
[1758751233030,0.2,211.75,211.74,0.72]
[1758751233241,0.2,211.75,211.74,2.92417666]
[1758751234858,0.2,211.75,211.74,0.72]
[1758751235150,0.2,211.75,211.74,7.64694987]
[1758751237455,0.2,211.75,211.74,5.44277321]
[1758751237948,0.2,211.75,211.74,7.64694987]
[1758751240449,1e-08,211.75,211.74,7.64694987]
[1758751244265,1e-08,211.75,211.74,23.44672054]
[1758751245185,1e-08,211.75,211.74,21.24254388]
[1758751245969,1e-08,211.75,211.74,23.44672054]
[1758751249158,1e-08,211.75,211.74,61.08672054]
[1758751249470,1e-08,211.75,211.74,62.97953966]
[1758751249761,0.2,211.86,211.85,6.92449764]
[1758751250060,0.2,211.86,211.85,42.34032098]
[1758751250356,0.86,211.86,211.85,44.54449764]
[1758751250532,0.2,211.86,211.85,45.77559536]
[1758751250734,0.86,211.86,211.85,45.77559536]
[1758751251974,0.86,211.86,211.85,42.34032098]
[1758751252152,0.86,211.86,211.85,45.77559536]
[1758751252461,4.29527438,211.86,211.78,4.72188119]
[1758751252666,26.0,211.83,211.78,4.72188119]
[1758751252964,0.66,211.82,211.78,16.52658418]
[1758751253140,0.66,211.81,211.78,16.52658418]
[1758751253336,0.66,211.8,211.78,16.52658418]
[1758751253676,0.2,211.86,211.79,3.43527438]
[1758751253853,0.66,211.82,211.79,3.43527438]
[1758751254054,0.66,211.81,211.79,3.43527438]
[1758751254367,0.66,211.81,211.8,4.72143531]
[1758751254570,0.2,211.86,211.8,16.5250236]
[1758751254862,0.66,211.81,211.8,16.5250236]
[1758751255457,0.66,211.81,211.8,4.72143531]
[1758751255857,4.09527438,211.81,211.78,4.72188119]
[1758751256165,0.66,211.8,211.78,4.72188119]
[1758751256460,0.66,211.79,211.77,16.52691005]
[1758751256766,0.66,211.78,211.77,16.52691005]
[1758751257142,0.66,211.8,211.77,16.52691005]
[1758751257450,0.66,211.79,211.77,16.52691005]
[1758751257860,0.66,211.78,211.77,16.52691005]
[1758751258452,0.66,211.78,211.77,11.80480589]
[1758751258651,0.66,211.78,211.76,4.72232716]
[1758751258858,0.66,211.77,211.76,4.72232716]
[1758751259067,0.66,211.77,211.75,42.26252295]
[1758751259249,0.66,211.76,211.75,42.26252295]
[1758751260566,0.66,211.76,211.74,11.80655035]
[1758751260752,0.66,211.76,211.74,49.34655035]
[1758751260946,3.43527438,211.8,211.74,49.34655035]
[1758751261148,0.65,211.79,211.74,49.34655035]
[1758751261355,3.43527438,211.8,211.74,49.34655035]
[1758751261356,0.65,211.78,211.74,49.34655035]
[1758751261670,0.65,211.77,211.74,49.34655035]
[1758751261970,0.65,211.76,211.74,54.06932356]
[1758751262165,3.43527438,211.8,211.74,54.06932356]
[1758751262371,0.65,211.78,211.74,57.50459794]
[1758751262548,0.65,211.77,211.74,57.50459794]
[1758751263367,0.65,211.79,211.76,16.52814506]
[1758751264964,3.43527438,211.81,211.76,16.52814506]
[1758751265171,0.65,211.81,211.76,17.23814506]
[1758751265367,29.43527438,211.82,211.76,17.23814506]
[1758751265550,0.65,211.8,211.76,17.23814506]
[1758751265868,0.65,211.8,211.76,19.96341944]
[1758751266259,3.1534096,211.81,211.77,4.14527438]
[1758751266464,26.0,211.82,211.79,3.43527438]
[1758751267158,0.65,211.84,211.79,4.14527438]
[1758751267362,26.0,211.83,211.8,4.14527438]
[1758751267566,0.2,211.86,211.81,0.71]
[1758751267754,26.2,211.86,211.82,0.71]
[1758751268073,0.2,211.86,211.82,4.14527438]
[1758751268262,0.85,211.86,211.83,4.72076665]
[1758751268471,0.65,211.85,211.83,4.72076665]
[1758751268658,0.65,211.84,211.83,4.72076665]
[1758751270055,3.15539082,211.85,211.81,16.52424341]
[1758751270262,3.15539082,211.85,211.81,20.66951779]
[1758751270584,3.15539082,211.85,211.82,0.71]
[1758751270754,26.85,211.86,211.81,19.95951779]
[1758751270755,26.2,211.86,211.83,0.71]
[1758751271771,0.2,211.86,211.84,4.14527438]
[1758751271970,0.2,211.86,211.85,5.43032098]
[1758751272177,0.2,211.86,211.85,8.86559536]
[1758751273958,0.2,211.86,211.85,4.72032098]
[1758751274159,0.85,211.86,211.85,4.72032098]
[1758751274473,4.28527438,211.86,211.83,4.72055573]
[1758751274771,0.65,211.85,211.83,4.72055573]
[1758751275351,0.65,211.84,211.81,4.7212124]
[1758751275545,0.65,211.83,211.8,16.52456116]
[1758751275770,7.24148172,211.85,211.8,16.52456116]
[1758751275972,3.43527438,211.85,211.8,16.52456116]
[1758751276170,0.65,211.84,211.8,16.52456116]
[1758751277248,0.65,211.84,211.8,17.23456116]
[1758751277972,0.65,211.84,211.8,16.52456116]
[1758751278569,3.43527438,211.85,211.8,17.23456116]
[1758751278769,4.08527438,211.85,211.8,17.23456116]
[1758751278977,0.65,211.85,211.8,17.23456116]
[1758751279375,3.80668222,211.85,211.8,17.23456116]
[1758751279777,0.2,211.86,211.82,16.5234633]
[1758751279980,29.35668222,211.86,211.83,0.71]
[1758751280192,26.2,211.86,211.84,3.43527438]
[1758751280363,0.2,211.86,211.85,0.71]
[1758751280565,0.2,211.86,211.85,4.14527438]
[1758751280779,0.2,211.86,211.85,41.54527438]
[1758751281883,0.2,211.86,211.85,46.26559536]
[1758751286865,1e-08,211.86,211.85,8.86559536]
[1758751287069,1e-08,211.86,211.85,46.18559536]
[1758751288485,1e-08,211.86,211.85,63.21646375]
[1758751291324,0.2,211.97,211.86,13.59559401]
[1758751291484,0.2,211.97,211.94,3.43527438]
[1758751292001,0.91,211.97,211.94,3.43527438]
[1758751292578,0.91,211.97,211.95,4.71809389]
[1758751292893,0.2,211.97,211.96,41.40527438]
[1758751293091,0.2,211.97,211.96,37.97]
[1758751293298,0.2,211.97,211.96,41.40527438]
[1758751294199,0.71,212.02,212.0,3.43527438]
[1758751294598,0.71,212.02,212.01,4.71675864]
[1758751294791,0.71,212.04,212.01,4.71675864]
[1758751294989,26.71,212.04,212.01,4.71675864]
[1758751295202,0.71,212.03,212.01,16.50865524]
[1758751295401,0.71,212.05,212.01,19.94392962]
[1758751295714,0.71,212.04,212.01,57.16392962]
[1758751295899,0.71,212.04,212.01,53.72865524]
[1758751296089,26.0,212.05,212.01,57.16392962]
[1758751296290,26.71,212.05,212.01,57.16392962]
[1758751296686,0.71,212.05,212.01,57.16392962]
[1758751297300,0.71,212.05,212.01,57.87392962]
[1758751297504,26.91,212.08,212.02,4.14527438]
[1758751297900,0.71,212.07,212.03,37.2]
[1758751298109,0.71,212.07,212.03,40.63527438]
[1758751298616,0.71,212.07,212.01,16.50865524]
[1758751298829,0.71,212.06,212.02,37.18]
[1758751299021,0.71,212.05,212.01,4.71675864]
[1758751299214,0.71,212.04,212.01,4.71675864]
[1758751299511,0.71,212.03,212.01,4.71675864]
[1758751299906,0.71,212.02,211.99,4.7169835]
[1758751300127,0.71,212.01,211.99,4.7169835]
[1758751300292,0.71,212.0,211.99,4.7169835]
[1758751300487,0.71,212.0,211.98,4.71739063]
[1758751300708,0.71,211.99,211.98,4.71739063]
[1758751301393,3.43527438,212.03,211.97,4.71764872]
[1758751301601,0.71,212.01,211.97,4.71764872]
[1758751303502,3.43527438,212.02,211.97,17.22177052]
[1758751303710,4.14527438,212.02,211.97,17.22177052]
[1758751306497,0.71,212.01,211.97,4.71764872]
[1758751307036,0.71,212.01,211.97,5.42764872]
[1758751308093,0.71,212.0,211.95,0.71]
[1758751308295,0.71,212.0,211.95,41.28527438]
[1758751308705,0.71,212.0,211.96,0.71]
[1758751308917,26.71,212.03,211.97,4.14527438]
[1758751309119,29.43527438,212.03,211.98,0.71]
[1758751309317,3.43527438,212.03,211.99,0.71]
[1758751309624,26.71,212.05,211.99,0.71]
[1758751309625,30.14527438,212.05,212.0,0.71]
[1758751309919,26.0,212.06,212.01,0.71]
[1758751310236,3.63527438,212.08,212.02,0.71]
[1758751311018,0.2,212.08,212.02,0.71]
[1758751311206,3.3406791,212.08,212.02,4.14527438]
[1758751311398,26.2,212.08,212.03,0.69]
[1758751311613,26.92,212.08,212.04,0.69]
[1758751311920,0.2,212.08,212.05,0.69]
[1758751312118,0.92,212.08,212.04,4.7160913]
[1758751312323,0.92,212.08,212.04,5.4060913]
[1758751312822,0.92,212.08,212.04,17.19631955]
[1758751313018,0.2,212.08,212.04,16.50631955]
[1758751313226,28.19488726,212.06,212.01,11.79187945]
[1758751313534,28.91488726,212.05,212.01,4.71675864]
[1758751313710,0.72,212.04,212.01,4.71675864]
[1758751314325,0.72,212.04,211.99,16.51021274]
[1758751314724,0.72,212.04,211.99,17.20021274]
[1758751314935,26.0,212.05,212.0,0.69]
[1758751315124,26.0,212.05,212.01,2.88488726]
[1758751315308,28.39488726,212.08,212.01,2.88488726]
[1758751315514,29.11488726,212.08,212.02,0.69]
[1758751316040,0.2,212.08,212.04,2.19488726]
[1758751316246,0.2,212.08,212.05,0.69]
[1758751316426,0.2,212.08,212.06,4.71564651]
[1758751316943,0.72,212.07,212.04,4.7160913]
[1758751317139,26.0,212.07,212.04,4.7160913]
[1758751317436,0.72,212.06,212.04,4.7160913]
[1758751317641,3.11488726,212.08,212.01,19.3935425]
[1758751317843,2.91488726,212.07,212.01,17.19865524]
[1758751318043,0.72,212.07,212.01,17.19865524]
[1758751318244,0.72,212.07,212.01,19.3935425]
[1758751319447,26.0,212.06,212.01,19.3935425]
[1758751319756,26.72,212.06,212.01,17.19865524]
[1758751319917,26.72,212.06,212.01,19.3935425]
[1758751320116,0.72,212.05,212.01,4.71675864]
[1758751320335,0.72,212.04,212.01,4.71675864]
[1758751320522,26.0,212.05,212.01,5.43675864]
[1758751321018,0.2,212.08,212.04,6.91097856]
[1758751321223,0.2,212.08,212.04,18.70120681]
[1758751321433,0.2,212.08,212.05,0.72]
[1758751321632,0.2,212.08,212.06,0.72]
[1758751321843,0.2,212.08,212.04,16.50631955]
[1758751322026,0.9,212.08,212.04,17.22631955]
[1758751322229,3.09488726,212.08,212.04,16.50631955]
[1758751322751,3.09488726,212.08,212.04,17.22631955]
[1758751323248,29.09488726,212.08,212.04,17.22631955]
[1758751324323,3.09488726,212.08,212.04,17.22631955]
[1758751325553,0.2,212.08,212.05,0.72]
[1758751325726,0.2,212.08,212.06,0.72]
[1758751325928,0.2,212.08,212.07,0.72]
[1758751326324,0.2,212.08,212.07,5.43542415]
[1758751326558,0.2,212.08,212.07,4.71542415]
[1758751326857,0.2,212.08,212.07,5.43542415]
[1758751327630,0.2,212.08,212.07,7.63031141]
[1758751327631,1e-08,212.08,212.07,7.63031141]
[1758751327954,1e-08,212.09,212.07,44.73031141]
[1758751328129,1e-08,212.09,212.08,2.91488726]
[1758751328462,1e-08,212.09,212.08,7.63008907]
[1758751328631,1e-08,212.09,212.08,9.82497633]
[1758751329167,1e-08,212.09,212.08,23.42057034]
[1758751329925,1e-08,212.09,212.08,19.03079582]
[1758751330131,1e-08,212.09,212.08,44.87008907]
[1758751332573,1e-08,212.09,212.08,42.67520181]
[1758751332743,1e-08,212.09,212.08,7.63008907]
[1758751333056,1e-08,212.09,212.08,44.87008907]
[1758751334441,1e-08,212.09,212.08,7.63008907]
[1758751334766,1e-08,212.09,212.08,44.87008907]
[1758751335143,1e-08,212.09,212.08,44.55532467]
[1758751337470,1e-08,212.09,212.08,60.03104154]
[1758751337774,1e-08,212.09,212.08,58.15091868]
[1758751338273,1e-08,212.09,212.08,58.11091868]
[1758751338669,1e-08,212.09,212.08,60.00078662]
[1758751339994,1e-08,212.09,212.08,61.88090948]
[1758751341187,1e-08,212.09,212.08,53.92568405]
[1758751341498,1e-08,212.09,212.08,46.40519261]
[1758751341684,1e-08,212.09,212.08,48.28531547]
[1758751342202,1e-08,212.09,212.08,44.50506975]
[1758751342394,1e-08,212.09,212.08,59.98078662]
[1758751342787,1e-08,212.09,212.08,61.86090948]
[1758751343796,0.7,212.2,212.08,61.86090948]
[1758751343986,0.2,212.28,212.08,61.86090948]
[1758751343987,0.7,212.22,212.17,1.88012286]
[1758751344183,0.7,212.22,212.18,43.7531024]
[1758751344390,0.2,212.27,212.21,1.88012286]
[1758751344583,0.9,212.28,212.25,1.88012286]
[1758751344584,0.2,212.28,212.25,1.88012286]
[1758751344779,0.2,212.28,212.26,39.04012286]
[1758751345595,0.2,212.28,212.26,37.16]
[1758751346076,0.7,212.27,212.23,18.37166504]
[1758751346276,0.2,212.28,212.25,1.88012286]
[1758751346712,0.2,212.28,212.26,39.06012286]
[1758751346891,0.2,212.28,212.26,39.77012286]
[1758751347209,0.2,212.28,212.27,1.88012286]
[1758751347416,0.2,212.28,212.27,2.59012286]
[1758751347598,1e-08,212.28,212.27,2.59012286]
[1758751347779,1e-08,212.28,212.27,16.18571687]
[1758751348185,1e-08,212.28,212.27,20.89669816]
[1758751348819,0.70000001,212.28,212.27,4.71098129]
[1758751348983,2.58012287,212.28,212.23,37.16]
[1758751349186,1.88012286,212.26,212.22,4.71209122]
[1758751349492,0.6,212.25,212.23,37.18]
[1758751349685,0.6,212.25,212.22,4.71209122]
[1758751349686,0.6,212.24,212.22,4.71209122]
[1758751349885,0.6,212.23,212.2,4.71253534]
[1758751350114,0.6,212.25,212.21,37.18]
[1758751350287,0.6,212.25,212.22,4.71209122]
[1758751350288,2.48012286,212.25,212.22,4.71209122]
[1758751350616,0.6,212.24,212.22,41.89209122]
[1758751351195,1e-08,212.28,212.23,2.59012286]
[1758751352419,1e-08,212.28,212.25,18.37011107]
[1758751352624,1e-08,212.28,212.26,41.80187602]
[1758751353117,1e-08,212.28,212.26,42.51187602]
[1758751353705,1e-08,212.28,212.26,37.18]
[1758751353907,1e-08,212.28,212.26,37.16]
[1758751353908,0.6,212.27,212.26,37.16]
[1758751354312,0.6,212.27,212.26,41.87120324]
[1758751354513,1e-08,212.28,212.26,47.20307926]
[1758751354816,1e-08,212.28,212.26,41.87120324]
[1758751355511,5.22187602,212.27,212.21,37.18]
[1758751355710,4.62187602,212.24,212.21,37.18]
[1758751355915,5.22187602,212.24,212.21,37.18]
[1758751356635,1e-08,212.28,212.22,4.71209122]
[1758751356825,4.62187602,212.24,212.22,4.71209122]
[1758751357028,5.22187602,212.24,212.22,4.71209122]
[1758751357348,0.6,212.23,212.22,4.71209122]
[1758751357547,4.62187602,212.24,212.22,4.71209122]
[1758751357720,4.62187602,212.25,212.22,4.71209122]
[1758751357907,0.6,212.24,212.22,4.71209122]
[1758751358106,1e-08,212.28,212.2,4.71236136]
[1758751358107,5.22187602,212.23,212.2,4.71236136]
[1758751358437,26.0,212.26,212.2,4.71236136]
[1758751358438,4.62187602,212.21,212.2,4.71236136]
[1758751358626,0.6,212.21,212.2,4.71236136]
[1758751358814,5.22187602,212.21,212.2,4.71236136]
[1758751359222,4.62187602,212.21,212.2,4.71236136]
[1758751359616,26.0,212.26,212.2,4.71236136]
[1758751359617,0.6,212.26,212.2,4.71236136]
[1758751359819,26.0,212.27,212.21,4.62187602]
[1758751360028,26.0,212.27,212.22,37.85]
[1758751360928,30.62187602,212.27,212.23,16.49154218]
[1758751361131,5.22187602,212.26,212.23,4.71186919]
[1758751361439,4.62187602,212.24,212.21,4.71209198]
[1758751361739,4.62187602,212.22,212.21,4.71209198]
[1758751361944,5.22187602,212.22,212.21,4.71209198]
[1758751362238,4.62187602,212.23,212.21,4.71209198]
[1758751362743,4.62187602,212.22,212.21,4.71209198]
[1758751363121,4.62187602,212.22,212.2,4.71253534]
[1758751363322,4.62187602,212.23,212.2,4.71253534]
[1758751363945,1e-08,212.28,212.21,0.71]
[1758751364126,1e-08,212.28,212.23,4.62187602]
[1758751364644,1e-08,212.28,212.24,0.71]
[1758751364887,1e-08,212.28,212.25,37.14]
[1758751365023,1e-08,212.28,212.25,42.47187602]
[1758751365218,1e-08,212.28,212.26,10.04307926]
[1758751365619,1e-08,212.28,212.27,0.71]
[1758751365830,1e-08,212.28,212.26,4.71120324]
[1758751366038,5.22187602,212.27,212.23,4.71186919]
[1758751366240,4.62187602,212.24,212.17,0.71]
[1758751366431,4.62187602,212.23,212.19,32.16]
[1758751366750,4.62187602,212.23,212.19,32.87]
[1758751367240,5.22187602,212.22,212.17,37.14]
[1758751367423,4.62187602,212.22,212.18,0.71]
[1758751367620,1e-08,212.28,212.21,4.62187602]
[1758751367819,4.62187602,212.27,212.22,37.14]
[1758751368021,1e-08,212.28,212.17,16.40454831]
[1758751368336,4.62187602,212.26,212.18,37.85]
[1758751368536,4.62187602,212.22,212.19,37.14]
[1758751368745,0.6,212.25,212.19,37.85]
[1758751369044,1e-08,212.28,212.23,4.62187602]
[1758751369219,1e-08,212.28,212.2,0.71]
[1758751369220,1e-08,212.28,212.25,16.48998821]
[1758751369619,1e-08,212.28,212.26,0.71]
[1758751369830,1e-08,212.28,212.27,37.18]
[1758751370134,1e-08,212.28,212.25,4.7114252]
[1758751370135,5.22187603,212.28,212.25,4.7114252]
[1758751370332,1e-08,212.28,212.25,4.7114252]
[1758751370731,1e-08,212.28,212.25,17.19998821]
[1758751371064,0.6,212.27,212.25,4.7114252]
[1758751371252,1e-08,212.28,212.25,4.7114252]
[1758751371548,4.62187603,212.28,212.25,4.7114252]
[1758751372047,1e-08,212.28,212.25,4.7114252]
[1758751372248,4.62187603,212.28,212.25,4.7114252]
[1758751372549,1e-08,212.28,212.25,16.48998821]
[1758751374044,26.00000001,212.28,212.25,16.48998821]
[1758751374251,1e-08,212.28,212.26,0.66]
[1758751374646,1e-08,212.28,212.27,37.82]
[1758751375171,1e-08,212.28,212.27,44.62869597]
[1758751375448,1e-08,212.28,212.27,37.82]
[1758751376228,1e-08,212.28,212.27,42.53098129]
[1758751376435,1e-08,212.28,212.27,49.33967726]
[1758751376743,1e-08,212.28,212.27,41.87098129]
[1758751378749,1e-08,212.28,212.25,4.71120919]
[1758751378966,7.40869598,212.28,212.25,41.85120919]
[1758751379331,6.80869597,212.27,212.25,41.85120919]
[1758751379962,6.80869598,212.28,212.25,41.85120919]
[1758751380272,1e-08,212.28,212.26,7.46869597]
[1758751380434,1e-08,212.28,212.27,37.83]
[1758751380779,1e-08,212.28,212.27,42.54098129]
[1758751381060,1e-08,212.28,212.27,4.71098129]
[1758751381436,0.60000001,212.28,212.24,4.71164719]
[1758751381670,1e-08,212.28,212.24,16.49076516]
[1758751381835,1e-08,212.28,212.25,37.85]
[1758751382240,1e-08,212.28,212.26,0.69]
[1758751382434,6.80869598,212.28,212.25,37.2]
[1758751382634,6.80869598,212.28,212.25,41.91121001]
[1758751382836,1e-08,212.28,212.25,53.68977302]
[1758751383137,1e-08,212.28,212.26,0.69]
[1758751383545,1e-08,212.28,212.25,53.68977302]
[1758751383744,1e-08,212.28,212.26,0.69]
[1758751384146,1e-08,212.28,212.27,0.69]
[1758751384546,1e-08,212.28,212.25,23.29846899]
[1758751384752,1e-08,212.28,212.27,4.71098129]
[1758751385369,1e-08,212.28,212.27,5.40098129]
[1758751385867,1e-08,212.28,212.27,49.44967726]
[1758751386059,1e-08,212.28,212.27,5.40098129]
[1758751386361,1e-08,212.28,212.27,4.71098129]
[1758751386941,1e-08,212.28,212.25,12.46856301]
[1758751386942,1e-08,212.28,212.26,4.71120324]
[1758751388362,1e-08,212.28,212.04,23.73607121]
[1758751388363,6.80869597,212.27,212.22,0.69]
[1758751388545,6.80869597,212.27,212.23,54.42154218]
[1758751388746,6.80869597,212.27,212.23,53.73154218]
[1758751388947,1e-08,212.28,212.24,0.69]
[1758751389443,1e-08,212.28,212.27,6.80869597]
[1758751389644,1e-08,212.28,212.27,44.04869597]
[1758751389844,1e-08,212.28,212.27,44.73869597]
[1758751390256,1e-08,212.28,212.27,49.44967726]
[1758751392064,1e-08,212.31,212.28,13.59559401]
[1758751392270,1e-08,212.31,212.3,4.71031559]
[1758751392578,1e-08,212.31,212.3,11.51901156]
[1758751392762,1e-08,212.31,212.3,12.20901156]
[1758751392964,1e-08,212.31,212.3,5.40031559]
[1758751393160,1e-08,212.31,212.3,4.71031559]
[1758751393357,1e-08,212.31,212.3,41.91031559]
[1758751393691,1e-08,212.31,212.3,42.60031559]
[1758751393870,1e-08,212.31,212.3,41.91031559]
[1758751394373,1e-08,212.31,212.3,42.60031559]
[1758751394552,1e-08,212.31,212.3,41.91031559]
[1758751395884,1e-08,212.31,212.3,42.60031559]
[1758751396048,1e-08,212.31,212.3,41.91031559]
[1758751396758,1e-08,212.31,212.3,42.60031559]
[1758751397165,1e-08,212.31,212.3,49.40901156]
[1758751397372,1e-08,212.31,212.3,42.60031559]
[1758751397960,1e-08,212.31,212.3,49.40901156]
[1758751398553,1e-08,212.31,212.3,49.36901156]
[1758751398767,1e-08,212.31,212.3,42.56031559]
[1758751399955,1e-08,212.31,212.3,49.36901156]
[1758751401152,1e-08,212.31,212.3,62.96460557]
[1758751401483,1e-08,212.31,212.3,49.36901156]
[1758751402398,1e-08,212.31,212.3,62.96460557]
[1758751403000,1e-08,212.31,212.3,42.52031559]
[1758751403156,1e-08,212.31,212.3,49.32901156]
[1758751403863,1e-08,212.31,212.3,4.71031559]
[1758751404062,1e-08,212.31,212.3,41.85031559]
[1758751405268,1e-08,212.31,212.3,41.83031559]
[1758751405755,1e-08,212.31,212.3,4.71031559]
[1758751406169,6.80869598,212.31,212.3,41.83031559]
[1758751406987,6.80869598,212.31,212.3,4.71031559]
[1758751407187,1e-08,212.31,212.3,37.8]
[1758751407796,1e-08,212.31,212.3,44.60869597]
[1758751409377,1e-08,212.31,212.3,49.31901156]
[1758751410195,1e-08,212.31,212.3,4.71031559]
[1758751410389,1e-08,212.31,212.3,41.81031559]
[1758751410689,7.40869598,212.31,212.3,4.71031559]
[1758751410876,7.40869598,212.31,212.3,41.81031559]
[1758751411271,6.80869598,212.31,212.3,41.81031559]
[1758751411592,6.80869598,212.31,212.3,4.71031559]
[1758751412097,7.40869598,212.31,212.28,41.81054327]
[1758751412304,6.80869597,212.29,212.25,4.7114252]
[1758751412589,6.80869597,212.26,212.25,41.8114252]
[1758751412772,6.80869597,212.27,212.25,53.58998821]
[1758751413190,3.16810058,212.3,212.25,41.8114252]
[1758751413495,6.80869597,212.27,212.25,41.8114252]
[1758751413786,6.80869597,212.29,212.25,53.58998821]
[1758751414713,32.80869598,212.31,212.26,0.7]
[1758751414864,32.80869598,212.31,212.27,37.1]
[1758751415271,26.00000001,212.31,212.28,4.71075937]
[1758751415672,26.00000001,212.31,212.28,16.4876578]
[1758751415873,33.40869598,212.31,212.28,4.71075937]
[1758751416077,33.40869598,212.31,212.27,4.71096361]
[1758751416078,6.80869597,212.29,212.27,4.71096361]
[1758751416376,7.40869597,212.28,212.27,4.71096361]
[1758751417167,6.80869597,212.28,212.27,4.71096361]
[1758751417367,6.80869597,212.28,212.25,48.8783843]
[1758751417368,6.80869597,212.28,212.26,4.71120324]
[1758751417584,7.40869597,212.28,212.26,4.71120324]
[1758751417781,6.80869597,212.27,212.26,4.71120324]
[1758751418183,0.6,212.3,212.26,4.71120324]
[1758751418489,6.80869597,212.27,212.26,4.71120324]
[1758751418680,7.40869597,212.27,212.26,4.71120324]
[1758751418987,7.40869597,212.27,212.23,41.81186919]
[1758751419180,3.16827185,212.3,212.23,53.59154218]
[1758751419181,6.80869597,212.26,212.23,53.59154218]
[1758751419388,26.0,212.28,212.23,54.29154218]
[1758751419595,6.80869597,212.27,212.23,54.29154218]
[1758751419797,6.80869597,212.29,212.24,0.7]
[1758751420005,6.80869597,212.3,212.25,0.7]
[1758751420373,26.00000001,212.31,212.24,6.80869597]
[1758751420703,6.80869597,212.29,212.25,37.1]
[1758751420997,0.6,212.3,212.25,37.1]
[1758751421167,6.80869597,212.29,212.25,37.1]
[1758751421566,6.80869597,212.3,212.26,16.48921134]
[1758751422096,1e-08,212.31,212.29,6.80869597]
[1758751422399,1e-08,212.31,212.3,44.62869597]
[1758751423089,1e-08,212.31,212.3,37.82]
[1758751423298,1e-08,212.31,212.3,44.62869597]
[1758751423488,1e-08,212.31,212.3,49.33901156]
[1758751424586,1e-08,212.31,212.3,4.71031559]
[1758751424786,1e-08,212.31,212.3,41.83031559]
[1758751425774,1e-08,212.31,212.3,42.53031559]
[1758751426279,1e-08,212.31,212.3,41.83031559]
[1758751426802,1e-08,212.31,212.3,4.71031559]
[1758751427574,1e-08,212.31,212.29,4.71053747]
[1758751427790,1e-08,212.31,212.3,37.1]
[1758751428006,1e-08,212.31,212.3,44.60869597]
[1758751429610,1e-08,212.31,212.3,49.31901156]
[1758751430306,1e-08,212.31,212.3,62.91460557]
[1758751432792,1e-08,212.31,212.3,49.31901156]
[1758751432993,1e-08,212.31,212.3,12.21901156]
[1758751433204,1e-08,212.31,212.3,49.29901156]
[1758751434022,1e-08,212.31,212.3,62.89460557]
[1758751436602,1e-08,212.31,212.3,60.70316023]
[1758751438409,0.2,212.4,212.33,26.0]
[1758751438612,0.2,212.4,212.39,4.61725063]
[1758751438927,0.2,212.4,212.39,41.67725063]
[1758751439219,0.8,212.4,212.39,37.06]
[1758751439612,0.8,212.4,212.37,4.61725063]
[1758751439805,0.6,212.39,212.38,37.04]
[1758751440011,0.6,212.39,212.38,41.74854129]
[1758751440211,0.2,212.4,212.38,41.74854129]
[1758751440726,0.6,212.39,212.38,41.74854129]
[1758751441017,0.2,212.4,212.38,41.74854129]
[1758751441411,0.2,212.4,212.38,46.36579192]
[1758751442500,0.2,212.4,212.38,41.74854129]
[1758751442707,0.2,212.4,212.38,43.62378396]